fUST/lending_fUST_20240502
["ID","MTS","AMOUNT","RATE_DAILY","PERIOD"]
[325234709,1714605032711,-170.612519,0.00019178,2]
[325234711,1714605032721,-241.11588919,0.00019418,2]
[325234712,1714605032730,-263.41029085,0.00019515,2]
[325234714,1714605032740,-155.6038988,0.00019516,2]
[325234715,1714605032749,-35518.9728437,0.00019517,2]
[325234716,1714605032758,-1575.0473399,0.00019518,2]
[325234717,1714605032767,-710.77308456,0.00019519,2]
[325234718,1714605032776,-160.44418,0.00019638,2]
[325234719,1714605032785,-200.0,0.0002,2]
[325234720,1714605032795,-23418.63905385,0.0002,2]
[325234721,1714605032807,-1234.36094615,0.0002,2]
[325234722,1714605032818,-202.34444493,0.0002,2]
[325234723,1714605032827,-522.04127739,0.0002091,2]
[325234724,1714605032837,-223.58832712,0.0002091,2]
[325234725,1714605032848,-1.99899593,0.0002091,2]
[325234726,1714605032857,-154.84515485,0.0002091,2]
[325234727,1714605032867,-400.0,0.0002091,2]
[325234728,1714605032876,-155.01275043,0.0002091,2]
[325234729,1714605032885,-155.02956039,0.0002091,2]
[325234730,1714605032895,-258.76626635,0.0002091,2]
[325234731,1714605032904,-1010.6628734,0.0002091,2]
[325234733,1714605032913,-284.58825175,0.0002091,2]
[325234735,1714605032922,-682.90391434,0.00020911,2]
[325234737,1714605032931,-154.79876161,0.00020911,2]
[325234739,1714605032940,-190.12631694,0.00020912,2]
[325234741,1714605032951,-24.10184311,0.00020912,2]
[325234743,1714605032961,-730.61014924,0.00020912,2]
[325234745,1714605032970,-845.11018484,0.00020912,2]
[325234747,1714605032979,-203.18357003,0.00020912,2]
[325234749,1714605032988,-213.46928202,0.00020912,2]
[325234751,1714605032999,-312.47126949,0.00020912,2]
[325234753,1714605033008,-980.82202636,0.00020912,2]
[325234755,1714605033017,-155.80789349,0.00020912,2]
[325234757,1714605033026,-64.68532713,0.00020912,2]
[325234855,1714605039172,-147.49492466,0.00020912,2]
[325234856,1714605039182,-514.23297925,0.00020912,2]
[325234857,1714605039192,-702.32396249,0.00020912,2]
[325234858,1714605039201,-2136.0411417,0.00020912,2]
[325234859,1714605039210,-154.78330338,0.00020912,2]
[325234860,1714605039220,-513.47404116,0.00020912,2]
[325234861,1714605039229,-154.84515485,0.00020912,2]
[325234862,1714605039239,-271.95968087,0.00020912,2]
[325234864,1714605039249,-2128.61400184,0.00020912,2]
[325234866,1714605039264,-272.67733248,0.00020912,2]
[325234868,1714605039274,-155.3111945,0.00020912,2]
[325234870,1714605039283,-183.80738667,0.00020912,2]
[325234872,1714605039293,-468.70122511,0.00020912,2]
[325234874,1714605039304,-311.51358233,0.00020912,2]
[325234875,1714605039313,-2827.2918678,0.00020912,2]
[325234876,1714605039324,-154.93793206,0.00020912,2]
[325234877,1714605039333,-155.22572216,0.00020912,2]
[325234878,1714605039346,-1202.42195094,0.00020912,2]
[325234879,1714605039356,-1676.92552467,0.00020912,2]
[325234880,1714605039366,-1575.6250749,0.00020912,2]
[325234881,1714605039376,-206.23930448,0.00020912,2]
[325234882,1714605039386,-460.13643782,0.00020913,2]
[325234883,1714605039395,-166.666666,0.00021918,2]
[325234884,1714605039405,-166.666666,0.00022431,2]
[325234885,1714605039414,-166.666666,0.00022944,2]
[325234886,1714605039423,-713.83575721,0.00023,2]
[325234887,1714605039433,-621.42994972,0.00023408,2]
[325234888,1714605039442,-166.666666,0.00023456,2]
[325234889,1714605039452,-898.94515427,0.000239,2]
[325234890,1714605039462,-166.666666,0.00023969,2]
[325234891,1714605039472,-693.32219262,0.00024,2]
[325234892,1714605039481,-166.666666,0.00024482,2]
[325234893,1714605039491,-620.07149749,0.00024578,2]
[325234894,1714605039500,-620.00357487,0.00025807,2]
[325234895,1714605039510,-620.00017874,0.00027098,2]
[325234896,1714605039519,-741.35909321,0.0002749,2]
[325234897,1714605039529,-220.96622212,0.00028,2]
[325234898,1714605039538,-504.60460656,0.00028,2]
[325234899,1714605039547,-247.0,0.0003,2]
[325234900,1714605039557,-150.0,0.00031161,3]
[325234901,1714605039566,-5000.0,0.00033,4]
[325234902,1714605039577,-247.0,0.00033,2]
[325234903,1714605039587,-154.78330338,0.00034806,4]
[325234904,1714605039596,-713.03976363,0.000349,2]
[325234905,1714605039605,-162.785033,0.000349,2]
[325234906,1714605039615,-151.0,0.000349,2]
[325234907,1714605039624,-162.785033,0.000349,2]
[325234908,1714605039634,-151.0,0.000349,2]
[325234909,1714605039643,-151.0,0.000349,2]
[325234910,1714605039653,-151.0,0.000349,2]
[325234911,1714605039663,-226.808906,0.000349,2]
[325234912,1714605039672,-226.808906,0.000349,2]
[325234913,1714605039682,-185.683349,0.000349,2]
[325234914,1714605039691,-185.683349,0.000349,2]
[325234915,1714605039700,-414.925907,0.000349,2]
[325234916,1714605039709,-414.925907,0.000349,2]
[325234917,1714605039719,-151.0,0.000349,2]
[325234918,1714605039728,-151.0,0.000349,2]
[325234919,1714605039737,-151.0,0.000349,2]
[325234920,1714605039746,-151.0,0.000349,2]
[325234921,1714605039755,-230.594387,0.000349,2]
[325234922,1714605039764,-230.594387,0.000349,2]
[325234923,1714605039773,-151.0,0.000349,2]
[325234924,1714605039782,-228.290388,0.000349,2]
[325234925,1714605039791,-247.0,0.00035,2]
[325234926,1714605039800,-597.98045973,0.00035,2]
[325234927,1714605039810,-10289.49794185,0.00035,2]
[325234928,1714605039820,-462.7883883,0.00035,7]
[325234929,1714605039829,-799.17,0.00035148,3]
[325234930,1714605039838,-857.97,0.00035148,3]
[325234931,1714605039847,-154.78330338,0.00035158,2]
[325234932,1714605039856,-156.74703154,0.00035158,4]
[325234933,1714605039865,-363.86320338,0.00035158,2]
[325234934,1714605039874,-154.81422293,0.00035158,4]
[325234935,1714605039883,-2000.0,0.00035158,2]
[325234936,1714605039893,-18843.97989321,0.00035158,4]
[325234937,1714605039902,-151.0,0.00035158,2]
[325234938,1714605039911,-151.0,0.00035158,2]
[325234939,1714605039920,-151.0,0.00035158,2]
[325234940,1714605039930,-151.0,0.00035158,2]
[325234941,1714605039939,-151.0,0.00035158,2]
[325234942,1714605039948,-151.0,0.00035158,2]
[325234943,1714605039958,-151.0,0.00035158,2]
[325234944,1714605039968,-151.0,0.00035158,2]
[325234945,1714605039977,-151.0,0.00035158,2]
[325234946,1714605039988,-151.0,0.00035158,2]
[325234947,1714605039998,-151.0,0.00035158,2]
[325234948,1714605040007,-151.0,0.00035158,2]
[325234949,1714605040018,-151.0,0.00035158,2]
[325234950,1714605040028,-151.0,0.00035158,2]
[325234951,1714605040038,-498.118607,0.00035158,2]
[325234952,1714605040047,-151.0,0.00035158,2]
[325234953,1714605040058,-498.118607,0.00035158,2]
[325234954,1714605040068,-181.640383,0.00035158,2]
[325234955,1714605040077,-181.640383,0.00035158,2]
[325234956,1714605040087,-151.0,0.00035158,2]
[325234957,1714605040096,-87.40784336,0.00035158,2]
[325234963,1714605040863,-228.290388,0.000349,2]
[325234964,1714605040872,-63.59215664,0.00035158,2]
[325234965,1714605040881,-151.0,0.00035158,2]
[325234966,1714605040890,-162.785033,0.00035158,2]
[325234967,1714605040899,-162.785033,0.00035158,2]
[325234968,1714605040909,-232.579818,0.00035158,2]
[325234969,1714605040918,-151.0,0.00035158,2]
[325234970,1714605040927,-220.671945,0.00035158,2]
[325234971,1714605040936,-226.808906,0.00035158,2]
[325234972,1714605040945,-226.808906,0.00035158,2]
[325234973,1714605040955,-185.683349,0.00035158,2]
[325234974,1714605040965,-185.683349,0.00035158,2]
[325234975,1714605040975,-414.925907,0.00035158,2]
[325234976,1714605040984,-414.925907,0.00035158,2]
[325234977,1714605040993,-151.0,0.00035158,2]
[325234978,1714605041003,-151.0,0.00035158,2]
[325234979,1714605041012,-151.0,0.00035158,2]
[325234980,1714605041021,-230.594387,0.00035158,2]
[325234981,1714605041030,-151.0,0.00035158,2]
[325234982,1714605041040,-230.594387,0.00035158,2]
[325234983,1714605041049,-228.290388,0.00035158,2]
[325234984,1714605041058,-154.78330338,0.0003589,2]
[325234985,1714605041068,-30951.91349723,0.00036,14]
[325234986,1714605041078,-154.89611828,0.00036,4]
[325234987,1714605041088,-151.0,0.00036,2]
[325234988,1714605041097,-151.0,0.00036,2]
[325234989,1714605041107,-151.0,0.00036,2]
[325234990,1714605041116,-151.0,0.00036,2]
[325234991,1714605041125,-151.0,0.00036,2]
[325234992,1714605041134,-151.0,0.00036,2]
[325234993,1714605041143,-151.0,0.00036,2]
[325234994,1714605041152,-151.0,0.00036,2]
[325234995,1714605041161,-151.0,0.00036,2]
[325234996,1714605041170,-151.0,0.00036,2]
[325234997,1714605041179,-151.0,0.00036,2]
[325234998,1714605041189,-151.0,0.00036,2]
[325234999,1714605041198,-151.0,0.00036,2]
[325235000,1714605041208,-151.0,0.00036,2]
[325235001,1714605041217,-151.0,0.00036,2]
[325235002,1714605041226,-151.0,0.00036,2]
[325235003,1714605041235,-151.0,0.00036,2]
[325235004,1714605041245,-498.118607,0.00036,2]
[325235005,1714605041256,-151.0,0.00036,2]
[325235006,1714605041268,-498.118607,0.00036,2]
[325235007,1714605041278,-181.640383,0.00036,2]
[325235008,1714605041287,-181.640383,0.00036,2]
[325235009,1714605041296,-151.0,0.00036,2]
[325235010,1714605041306,-151.0,0.00036,2]
[325235011,1714605041315,-151.0,0.00036,2]
[325235012,1714605041326,-162.785033,0.00036,2]
[325235013,1714605041336,-162.785033,0.00036,2]
[325235014,1714605041345,-151.0,0.00036,2]
[325235015,1714605041355,-226.808906,0.00036,2]
[325235016,1714605041363,-226.808906,0.00036,2]
[325235017,1714605041372,-185.683349,0.00036,2]
[325235018,1714605041382,-185.683349,0.00036,2]
[325235020,1714605041391,-414.925907,0.00036,2]
[325235021,1714605041400,-414.925907,0.00036,2]
[325235022,1714605041410,-151.0,0.00036,2]
[325235023,1714605041422,-151.0,0.00036,2]
[325235024,1714605041431,-151.0,0.00036,2]
[325235025,1714605041441,-230.594387,0.00036,2]
[325235026,1714605041450,-151.0,0.00036,2]
[325235027,1714605041461,-247.0,0.00036,2]
[325235028,1714605041472,-230.594387,0.00036,2]
[325235029,1714605041482,-228.290388,0.00036,2]
[325235030,1714605041491,-256.41210884,0.0003624,2]
[325235031,1714605041502,-1979.08470554,0.00037,2]
[325235032,1714605041512,-223.0,0.00037,2]
[325235033,1714605041521,-5000.0,0.0003709,10]
[325235034,1714605041531,-151.0,0.00037169,2]
[325235035,1714605041540,-1667.19,0.00037169,2]
[325235036,1714605041549,-1667.19,0.00037169,2]
[325235037,1714605041559,-1667.19,0.00037169,2]
[325235038,1714605041569,-1667.19,0.00037169,2]
[325235039,1714605041578,-1667.19,0.00037169,2]
[325235040,1714605041587,-1667.19,0.00037169,2]
[325235041,1714605041608,-1667.19,0.00037169,2]
[325235042,1714605041620,-162.785033,0.00037169,2]
[325235043,1714605041631,-162.785033,0.00037169,2]
[325235044,1714605041640,-999.0,0.00037169,7]
[325235045,1714605041650,-151.0,0.00037169,2]
[325235046,1714605041826,-226.808906,0.00037169,2]
[325235047,1714605041836,-226.808906,0.00037169,2]
[325235048,1714605041846,-185.683349,0.00037169,2]
[325235049,1714605041855,-185.683349,0.00037169,2]
[325235050,1714605041864,-414.925907,0.00037169,2]
[325235051,1714605041874,-414.925907,0.00037169,2]
[325235052,1714605041883,-151.0,0.00037169,2]
[325235053,1714605041893,-151.0,0.00037169,2]
[325235054,1714605041902,-151.0,0.00037169,2]
[325235055,1714605041912,-230.594387,0.00037169,2]
[325235056,1714605041921,-151.0,0.00037169,2]
[325235057,1714605041934,-230.594387,0.00037169,2]
[325235058,1714605041945,-228.290388,0.00037169,2]
[325235059,1714605041954,-46736.72390171,0.0003717,2]
[325235060,1714605041967,-43130.79935306,0.0003717,2]
[325235061,1714605041976,-151.0,0.0003717,2]
[325235062,1714605041986,-151.0,0.0003717,2]
[325235063,1714605041995,-151.0,0.0003717,2]
[325235064,1714605042004,-151.0,0.0003717,2]
[325235065,1714605042014,-151.0,0.0003717,2]
[325235066,1714605042023,-183.656104,0.0003717,2]
[325235067,1714605042032,-179.260984,0.0003717,2]
[325235068,1714605042042,-227.198788,0.0003717,2]
[325235069,1714605042051,-151.0,0.0003717,2]
[325235070,1714605042060,-151.0,0.0003717,2]
[325235071,1714605042070,-151.0,0.0003717,2]
[325235072,1714605042079,-151.0,0.0003717,2]
[325235073,1714605042089,-151.0,0.0003717,2]
[325235074,1714605042099,-151.0,0.0003717,2]
[325235075,1714605042109,-151.0,0.0003717,2]
[325235076,1714605042118,-498.118607,0.0003717,2]
[325235077,1714605042128,-151.0,0.0003717,2]
[325235078,1714605042137,-498.118607,0.0003717,2]
[325235079,1714605042147,-181.640383,0.0003717,2]
[325235080,1714605042156,-181.640383,0.0003717,2]
[325235081,1714605042166,-151.0,0.0003717,2]
[325235082,1714605042175,-151.0,0.0003717,2]
[325235083,1714605042185,-162.785033,0.0003717,2]
[325235084,1714605042194,-162.785033,0.0003717,2]
[325235085,1714605042203,-151.0,0.0003717,2]
[325235086,1714605042213,-226.808906,0.0003717,2]
[325235087,1714605042223,-185.683349,0.0003717,2]
[325235088,1714605042233,-226.808906,0.0003717,2]
[325235089,1714605042242,-185.683349,0.0003717,2]
[325235090,1714605042254,-414.925907,0.0003717,2]
[325235091,1714605042272,-414.925907,0.0003717,2]
[325235092,1714605042292,-151.0,0.0003717,2]
[325235093,1714605042312,-151.0,0.0003717,2]
[325235094,1714605042324,-151.0,0.0003717,2]
[325235095,1714605042334,-230.594387,0.0003717,2]
[325235096,1714605042343,-151.0,0.0003717,2]
[325235097,1714605042351,-230.594387,0.0003717,2]
[325235098,1714605042360,-228.290388,0.0003717,2]
[325235099,1714605042369,-223.0,0.00037671,2]
[325235100,1714605042378,-247.0,0.00038,2]
[325235101,1714605042388,-247.0,0.00039,2]
[325235102,1714605042398,-713.0397636,0.00039217,2]
[325235103,1714605042407,-223.0,0.00039267,14]
[325235104,1714605042417,-2000.0,0.0004,5]
[325235105,1714605042426,-6027.29777825,0.00041,7]
[325235106,1714605042436,-189.15626406,0.00041,2]
[325235107,1714605042445,-252.6859923,0.00041,2]
[325235108,1714605042455,-498.118607,0.00041,2]
[325235109,1714605042464,-223.458975,0.00041,2]
[325235110,1714605042474,-498.118607,0.00041,2]
[325235111,1714605042483,-181.640383,0.00041,2]
[325235112,1714605042492,-181.640383,0.00041,2]
[325235113,1714605042502,-151.0,0.00041,2]
[325235114,1714605042511,-151.0,0.00041,2]
[325235115,1714605042520,-162.785033,0.00041,2]
[325235116,1714605042529,-162.785033,0.00041,2]
[325235117,1714605042539,-151.0,0.00041,2]
[325235118,1714605042548,-226.808906,0.00041,2]
[325235119,1714605042557,-185.683349,0.00041,2]
[325235120,1714605042566,-226.808906,0.00041,2]
[325235121,1714605042583,-185.683349,0.00041,2]
[325235122,1714605042592,-414.925907,0.00041,2]
[325235123,1714605042601,-414.925907,0.00041,2]
[325235124,1714605042611,-151.0,0.00041,2]
[325235125,1714605042621,-151.0,0.00041,2]
[325235126,1714605042633,-151.0,0.00041,2]
[325235127,1714605042643,-230.594387,0.00041,2]
[325235128,1714605042652,-285.268902,0.00041,2]
[325235129,1714605042661,-230.594387,0.00041,2]
[325235130,1714605042671,-228.290388,0.00041,2]
[325235131,1714605042681,-178.1362501,0.00041096,2]
[325235132,1714605042691,-151.0,0.00041096,7]
[325235133,1714605042699,-151.0,0.00041096,7]
[325235134,1714605042709,-151.0,0.00041096,7]
[325235135,1714605042718,-151.0,0.00041096,7]
[325235136,1714605042727,-151.0,0.00041096,7]
[325235137,1714605042737,-151.0,0.00041096,7]
[325235138,1714605042746,-230.0,0.0004123,90]
[325235139,1714605042755,-1267.82,0.00041337,14]
[325235140,1714605042764,-151.0,0.00041337,7]
[325235141,1714605042773,-402.78944187,0.00042481,30]
[325235142,1714605042782,-154.62677039,0.00043283,30]
[325235143,1714605042791,-713.0397636,0.00043533,2]
[325235144,1714605042800,-223.0,0.00043979,90]
[325235145,1714605042809,-151.0,0.00044461,7]
[325235146,1714605042818,-258.50103,0.00044461,7]
[325235147,1714605042834,-151.0,0.00044461,7]
[325235148,1714605042843,-151.0,0.00044461,7]
[325235149,1714605042852,-151.0,0.00044474,7]
[325235150,1714605042862,-151.0,0.00044474,7]
[325235151,1714605042871,-151.0,0.00044474,7]
[325235152,1714605042881,-13225.43365438,0.00044479,2]
[325235153,1714605042891,-153.34957969,0.00044479,52]
[325235154,1714605042901,-174.69639,0.00044479,7]
[325235155,1714605042911,-151.0,0.00044479,7]
[325235156,1714605042920,-151.0,0.00044479,7]
[325235157,1714605042929,-498.118607,0.00044479,7]
[325235158,1714605042939,-498.118607,0.00044479,7]
[325235159,1714605042948,-181.640383,0.00044479,7]
[325235160,1714605042957,-181.640383,0.00044479,7]
[325235161,1714605042966,-151.0,0.00044479,7]
[325235162,1714605042975,-151.0,0.00044479,7]
[325235163,1714605042986,-162.785033,0.00044479,7]
[325235164,1714605042995,-162.785033,0.00044479,7]
[325235165,1714605043004,-151.0,0.00044479,7]
[325235166,1714605043013,-226.808906,0.00044479,7]
[325235167,1714605043023,-185.683349,0.00044479,7]
[325235168,1714605043032,-226.808906,0.00044479,7]
[325235169,1714605043041,-185.683349,0.00044479,7]
[325235170,1714605043050,-414.925907,0.00044479,7]
[325235171,1714605043059,-414.925907,0.00044479,7]
[325235172,1714605043069,-151.0,0.00044479,7]
[325235173,1714605043083,-151.0,0.00044479,7]
[325235174,1714605043093,-173.358856,0.00044479,7]
[325235175,1714605043102,-230.594387,0.00044479,7]
[325235176,1714605043110,-230.594387,0.00044479,7]
[325235177,1714605043119,-228.290388,0.00044484,7]
[325235178,1714605043128,-153.07338231,0.00045673,30]
[325235179,1714605043137,-223.0,0.00046728,90]
[325235180,1714605043146,-223.0,0.00047121,90]
[325235181,1714605043156,-713.0397636,0.0004785,2]
[325235182,1714605043165,-151.0,0.00048557,7]
[325235183,1714605043174,-153.48560238,0.00048566,30]
[325235184,1714605043183,-223.0,0.00049477,120]
[325235185,1714605043192,-152.70730249,0.00049605,30]
[325235186,1714605043201,-150.77383924,0.00049606,2]
[325235187,1714605043211,-187.5,0.00049863,2]
[325235188,1714605043219,-167.013283,0.00049863,2]
[325235189,1714605043229,-209.235977,0.00049863,2]
[325235190,1714605043238,-730.207818,0.00049863,2]
[325235192,1714605043247,-192.383729,0.00049863,2]
[325235193,1714605043257,-5000.0,0.0004989,15]
[325235194,1714605043267,-151.0,0.00049999,7]
[325235197,1714605043277,-151.0,0.00049999,7]
[325235199,1714605043287,-151.0,0.00049999,7]
[325235201,1714605043295,-151.0,0.00049999,7]
[325235203,1714605043306,-195.103288,0.00049999,7]
[325235204,1714605043315,-498.118607,0.00049999,7]
[325235205,1714605043327,-498.118607,0.00049999,7]
[325235207,1714605043337,-181.640383,0.00049999,7]
[325235208,1714605043347,-181.640383,0.00049999,7]
[325235210,1714605043356,-151.0,0.00049999,7]
[325235211,1714605043366,-151.0,0.00049999,7]
[325235212,1714605043375,-1531.66,0.00049999,7]
[325235213,1714605043384,-1531.66,0.00049999,7]
[325235214,1714605043393,-226.808906,0.00049999,7]
[325235215,1714605043402,-185.683349,0.00049999,7]
[325235217,1714605043411,-226.808906,0.00049999,7]
[325235219,1714605043420,-185.683349,0.00049999,7]
[325235220,1714605043429,-1531.67,0.00049999,7]
[325235221,1714605043439,-414.925907,0.00049999,7]
[325235222,1714605043448,-414.925907,0.00049999,7]
[325235223,1714605043458,-151.0,0.00049999,7]
[325235224,1714605043468,-151.0,0.00049999,7]
[325235225,1714605043477,-230.594387,0.00049999,7]
[325235226,1714605043487,-230.594387,0.00049999,7]
[325235227,1714605043496,-228.290388,0.00049999,7]
[325235229,1714605043505,-17050.43730878,0.0005,120]
[325235242,1714605046676,-323.90869545,0.00020913,2]
[325235243,1714605046687,-491.86670386,0.00020913,2]
[325235244,1714605046697,-138.13329614,0.000349,2]
[325235245,1714605046816,-103.72471586,0.000349,2]
[325235246,1714605046826,-228.290388,0.00035158,2]
[325235247,1714605046836,-241.858012,0.00035158,2]
[325235248,1714605046845,-228.290388,0.00036,2]
[325235249,1714605046854,-241.858012,0.00036,2]
[325235250,1714605046863,-228.290388,0.00037169,2]
[325235251,1714605046872,-241.858012,0.00037169,2]
[325235252,1714605046881,-228.290388,0.0003717,2]
[325235253,1714605046890,-241.858012,0.0003717,2]
[325235254,1714605046899,-228.290388,0.00041,2]
[325235255,1714605046908,-241.858012,0.00041,2]
[325235256,1714605046918,-228.290388,0.00044484,7]
[325235257,1714605046926,-241.858012,0.00044484,7]
[325235258,1714605046936,-228.290388,0.00049999,7]
[325235259,1714605046945,-241.858012,0.00049999,7]
[325235260,1714605046954,-83225.16521106,0.0005,120]
[325235261,1714605046963,-151.0,0.0005,7]
[325235262,1714605046972,-151.0,0.0005,7]
[325235263,1714605046982,-151.0,0.0005,7]
[325235264,1714605046991,-257.158267,0.0005,7]
[325235265,1714605047001,-152.280598,0.0005,7]
[325235266,1714605047010,-498.118607,0.0005,7]
[325235267,1714605047019,-498.118607,0.0005,7]
[325235268,1714605047028,-181.640383,0.0005,7]
[325235269,1714605047037,-181.640383,0.0005,7]
[325235270,1714605047046,-151.0,0.0005,7]
[325235271,1714605047055,-151.0,0.0005,7]
[325235272,1714605047064,-162.785033,0.0005,7]
[325235273,1714605047074,-162.785033,0.0005,7]
[325235274,1714605047083,-151.0,0.0005,7]
[325235275,1714605047092,-226.808906,0.0005,7]
[325235276,1714605047102,-185.683349,0.0005,7]
[325235277,1714605047111,-226.808906,0.0005,7]
[325235278,1714605047121,-185.683349,0.0005,7]
[325235279,1714605047130,-414.925907,0.0005,7]
[325235280,1714605047139,-414.925907,0.0005,7]
[325235281,1714605047149,-151.0,0.0005,7]
[325235282,1714605047158,-151.0,0.0005,7]
[325235283,1714605047167,-230.594387,0.0005,7]
[325235284,1714605047176,-230.594387,0.0005,7]
[325235285,1714605047186,-228.290388,0.0005,7]
[325235286,1714605047195,-228.290388,0.0005,7]
[325235287,1714605047204,-241.858012,0.0005,7]
[325235288,1714605047213,-18162.05474302,0.00050266,61]
[325235429,1714606231923,-3051.58762507,0.00016594,2]
[325235431,1714606231932,-767.39052551,0.00016595,2]
[325235433,1714606231942,-443.228487,0.00017716,2]
[325235435,1714606231951,-1463.18022273,0.00018441,2]
[325235437,1714606231962,-576.58072311,0.00018441,2]
[325235440,1714606231973,-47905.51425919,0.00018441,2]
[325235442,1714606231983,-24900.0,0.00018442,2]
[325235444,1714606231991,-603.94471779,0.000185,2]
[325235446,1714606232001,-161.35891236,0.00019078,2]
[325235448,1714606232010,-163.280521,0.00019178,2]
[325235449,1714606232020,-167.08174339,0.00019465,2]
[325235452,1714606232030,-197.49038207,0.00019563,2]
[325235453,1714606232040,-1378.68043058,0.00019564,2]
[325235455,1714606232049,-20200.60362902,0.00019565,2]
[325235457,1714606232058,-253.8180222,0.00019566,2]
[325235459,1714606232067,-550.09434991,0.00019566,2]
[325235460,1714606232077,-189.06464916,0.00019766,2]
[325235461,1714606232086,-154.78330338,0.00019866,2]
[325235462,1714606232095,-200.0,0.0002,2]
[325235463,1714606232104,-160.444355,0.00020096,2]
[325235464,1714606232115,-178.2599409,0.00020812,2]
[325235466,1714606232125,-717.98897193,0.00020912,2]
[325235467,1714606232134,-213.80486375,0.00020913,2]
[325235469,1714606232143,-263.90834832,0.00020913,2]
[325235471,1714606232155,-45076.96122347,0.00020913,2]
[325235560,1714606238128,-1735.16511503,0.000189,2]
[325235562,1714606238137,-500.0,0.00019562,2]
[325235564,1714606238146,-500.0,0.00019562,2]
[325235566,1714606238155,-500.0,0.00019562,2]
[325235568,1714606238165,-500.0,0.00019562,2]
[325235570,1714606238174,-500.0,0.00019562,2]
[325235572,1714606238183,-454.35324627,0.00019562,2]
[325235574,1714606238192,-22338.65270077,0.00020913,2]
[325235576,1714606238201,-166.666666,0.00021918,2]
[325235578,1714606238210,-166.666666,0.00022431,2]
[325235580,1714606238219,-166.666666,0.00022944,2]
[325235582,1714606238228,-166.666666,0.00023456,2]
[325235584,1714606238237,-1735.16511503,0.000239,2]
[325235586,1714606238247,-166.666666,0.00023969,2]
[325235588,1714606238256,-166.666666,0.00024482,2]
[325235590,1714606238265,-161.35891236,0.00025818,2]
[325235592,1714606238274,-220.96622212,0.00028,2]
[325235594,1714606238284,-227.0,0.0003,2]
[325235596,1714606238293,-150.0,0.00031348,3]
[325235598,1714606238302,-178.2599409,0.00031649,2]
[325235600,1714606238311,-161.35891236,0.00032557,2]
[325235602,1714606238320,-5000.0,0.00033,4]
[325235604,1714606238329,-427.02311544,0.00035,2]
[325235606,1714606238338,-154.86810987,0.0003589,2]
[325235608,1714606238348,-533.27139698,0.00037,2]
[325235610,1714606238357,-161.35891236,0.00039297,2]
[325235612,1714606238367,-178.2599409,0.00042487,2]
[325235614,1714606238377,-300.2118194,0.00044284,30]
[325235616,1714606238387,-153.34957969,0.00044487,52]
[325235618,1714606238396,-161.35891236,0.00046036,2]
[325235620,1714606238405,-394.56356481,0.0004633,30]
[325235623,1714606238414,-155.50451249,0.00049763,4]
[325235626,1714606238423,-171.263084,0.00049863,2]
[325235628,1714606238432,-167.013283,0.00049863,2]
[325235630,1714606238441,-10000.0,0.00050266,120]
[325235632,1714606238450,-363.86320338,0.00050266,2]
[325235634,1714606238459,-2000.0,0.00050266,2]
[325235636,1714606238468,-257.62445157,0.00050266,2]
[325235638,1714606238477,-5965.74302349,0.00050266,40]
[325235639,1714606238486,-154.62677039,0.00050507,60]
[325235642,1714606238495,-10000.0,0.00051266,120]
[325235644,1714606238504,-269.2766652,0.00051412,2]